fUSD/lending_fUSD_20250708
["ID","MTS","AMOUNT","RATE_DAILY","PERIOD"]
[370389791,1751991061114,-500.0,0.00024657,2]
[370389792,1751991061123,-500.0,0.00024657,2]
[370389793,1751991061133,-500.0,0.00024657,2]
[370389794,1751991061143,-460.0,0.00024657,2]
[370389795,1751991061152,-500.0,0.00024657,2]
[370389796,1751991061162,-500.0,0.00024657,2]
[370389797,1751991061171,-768.93,0.00024657,2]
[370389798,1751991061180,-500.0,0.00024657,2]
[370389799,1751991061190,-500.0,0.00024657,2]
[370389800,1751991061199,-460.0,0.00024657,2]
[370389801,1751991061208,-500.0,0.00024657,2]
[370389802,1751991061218,-500.0,0.00024657,2]
[370389803,1751991061228,-500.0,0.00024657,2]
[370389804,1751991061239,-500.0,0.00024657,2]
[370389805,1751991061250,-460.0,0.00024657,2]
[370389806,1751991061262,-500.0,0.00024657,2]
[370389807,1751991061272,-500.0,0.00024657,2]
[370389808,1751991061282,-460.0,0.00024657,2]
[370389809,1751991061291,-500.0,0.00024657,2]
[370389810,1751991061302,-1245.5,0.00024657,2]
[370389811,1751991061311,-257.94152631,0.00024657,2]
[370389812,1751991061320,-460.0,0.00024657,2]
[370389813,1751991061329,-460.0,0.00024657,2]
[370389814,1751991061339,-460.0,0.00024657,2]
[370389815,1751991061348,-460.0,0.00024657,2]
[370389816,1751991061360,-151.0,0.00024657,7]
[370389817,1751991061369,-978.3,0.00024657,2]
[370389818,1751991061379,-151.0,0.00024657,7]
[370389819,1751991061389,-460.0,0.00024657,2]
[370389820,1751991061400,-460.0,0.00024657,2]
[370389821,1751991061409,-151.0,0.00024657,7]
[370389822,1751991061419,-1579.51,0.00024657,2]
[370389823,1751991061428,-597.28,0.00024657,2]
[370389824,1751991061438,-151.0,0.00024657,7]
[370389825,1751991061448,-692.8,0.00024657,2]
[370389826,1751991061457,-460.0,0.00024657,2]
[370389827,1751991061468,-151.0,0.00024657,7]
[370389828,1751991061480,-151.0,0.00024657,7]
[370389829,1751991061490,-527.63,0.00024657,2]
[370389830,1751991061500,-151.0,0.00024657,7]
[370389831,1751991061511,-151.0,0.00024657,7]
[370389832,1751991061520,-460.0,0.00024657,2]
[370389833,1751991061530,-460.0,0.00024657,2]
[370389834,1751991061540,-460.0,0.00024657,2]
[370389835,1751991061550,-460.0,0.00024657,2]
[370389836,1751991061560,-460.0,0.00024657,2]
[370389837,1751991061784,-460.0,0.00024657,2]
[370389838,1751991061795,-1604.97,0.00024657,2]
[370389839,1751991061805,-460.0,0.00024657,2]
[370389840,1751991061815,-460.0,0.00024657,2]
[370389841,1751991061824,-460.0,0.00024657,2]
[370389842,1751991061833,-460.0,0.00024657,2]
[370389843,1751991061844,-495.04,0.00024657,2]
[370389844,1751991061856,-1500.0,0.00024657,2]
[370389845,1751991061865,-460.0,0.00024657,2]
[370389846,1751991061875,-460.0,0.00024657,2]
[370389847,1751991061885,-460.0,0.00024657,2]
[370389848,1751991061894,-460.0,0.00024657,2]
[370389849,1751991061904,-460.0,0.00024657,2]
[370389850,1751991061913,-460.0,0.00024657,2]
[370389851,1751991061922,-471.37,0.00024657,2]
[370389852,1751991061931,-460.0,0.00024657,2]
[370389853,1751991061941,-741.74,0.00024657,2]
[370389854,1751991061953,-1337.53,0.00024657,2]
[370389855,1751991061963,-582.38,0.00024657,2]
[370389856,1751991061973,-460.0,0.00024657,2]
[370389857,1751991061983,-1206.6,0.00024657,2]
[370389858,1751991061994,-460.0,0.00024657,2]
[370389859,1751991062004,-460.0,0.00024657,2]
[370389860,1751991062015,-460.0,0.00024657,2]
[370389861,1751991062024,-501.72,0.00024657,2]
[370389862,1751991062034,-460.0,0.00024657,2]
[370389863,1751991062044,-460.0,0.00024657,2]
[370389864,1751991062053,-460.0,0.00024657,2]
[370389865,1751991062062,-640.62,0.00024657,2]
[370389866,1751991062072,-460.0,0.00024657,2]
[370389867,1751991062081,-592.20378329,0.00024657,2]
[370389868,1751991062091,-460.0,0.00024657,2]
[370389869,1751991062100,-460.0,0.00024657,2]
[370389870,1751991062112,-460.0,0.00024657,2]
[370389871,1751991062121,-460.0,0.00024657,2]
[370389872,1751991062130,-460.0,0.00024657,2]
[370389873,1751991062140,-915.35,0.00024657,2]
[370389874,1751991062149,-460.0,0.00024657,2]
[370389875,1751991062159,-645.13,0.00024657,2]
[370389876,1751991062168,-490.0,0.00024657,2]
[370389877,1751991062178,-584.82,0.00024657,2]
[370389878,1751991062187,-599.25,0.00024657,2]
[370389879,1751991062197,-460.0,0.00024657,2]
[370389880,1751991062207,-1283.65,0.00024657,2]
[370389881,1751991062216,-929.96,0.00024657,2]
[370389882,1751991062227,-151.0,0.00024657,7]
[370389883,1751991062236,-460.0,0.00024657,2]
[370389884,1751991062246,-151.0,0.00024657,7]
[370389885,1751991062256,-151.0,0.00024657,7]
[370389886,1751991062265,-266.02523,0.00024657,7]
[370389887,1751991062274,-460.0,0.00024657,2]
[370389888,1751991062284,-460.0,0.00024657,2]
[370389889,1751991062294,-484.79,0.00024657,2]
[370389890,1751991062304,-460.0,0.00024657,2]
[370389891,1751991062314,-460.0,0.00024657,2]
[370389892,1751991062324,-460.0,0.00024657,2]
[370389893,1751991062333,-460.0,0.00024657,2]
[370389894,1751991062343,-460.0,0.00024657,2]
[370389895,1751991062353,-471.48,0.00024657,2]
[370389896,1751991062362,-460.0,0.00024657,2]
[370389897,1751991062372,-460.0,0.00024657,2]
[370389898,1751991062381,-1808.97,0.00024657,2]
[370389899,1751991062390,-594.51,0.00024657,2]
[370389900,1751991062400,-469.89,0.00024657,2]
[370389901,1751991062409,-460.0,0.00024657,2]
[370389902,1751991062420,-1483.33,0.00024657,2]
[370389903,1751991062429,-841.85,0.00024657,2]
[370389904,1751991062439,-460.0,0.00024657,2]
[370389905,1751991062449,-460.0,0.00024657,2]
[370389906,1751991062458,-460.0,0.00024657,2]
[370389907,1751991062468,-624.62,0.00024657,2]
[370389908,1751991062479,-834.15,0.00024657,2]
[370389909,1751991062489,-460.0,0.00024657,2]
[370389910,1751991062498,-494.92891125,0.00024657,2]
[370389911,1751991062508,-500.0,0.00024657,2]
[370389912,1751991062519,-460.0,0.00024657,2]
[370389913,1751991062528,-500.0,0.00024657,2]
[370389914,1751991062538,-500.0,0.00024657,2]
[370389915,1751991062549,-420.63854372,0.00024657,2]
[370389916,1751991062558,-460.0,0.00024657,2]
[370389917,1751991062568,-460.0,0.00024657,2]
[370389918,1751991062577,-460.0,0.00024657,2]
[370389919,1751991062587,-460.0,0.00024657,2]
[370389920,1751991062597,-516.83,0.00024657,2]
[370389921,1751991062610,-460.0,0.00024657,2]
[370389922,1751991062622,-460.0,0.00024657,2]
[370389923,1751991062632,-460.0,0.00024657,2]
[370389924,1751991062641,-460.0,0.00024657,2]
[370389925,1751991062651,-460.0,0.00024657,2]
[370389926,1751991062661,-460.0,0.00024657,2]
[370389927,1751991062671,-460.0,0.00024657,2]
[370389928,1751991062682,-1395.97,0.00024657,2]
[370389929,1751991062692,-483.9,0.00024657,2]
[370389930,1751991062701,-744.47,0.00024657,2]
[370389931,1751991062711,-460.0,0.00024657,2]
[370389932,1751991062720,-1400.42,0.00024657,2]
[370389933,1751991062730,-460.0,0.00024657,2]
[370389934,1751991062739,-460.0,0.00024657,2]
[370389935,1751991062749,-460.0,0.00024657,2]
[370389936,1751991062758,-460.0,0.00024657,2]
[370389937,1751991062767,-460.0,0.00024657,2]
[370389938,1751991062777,-460.0,0.00024657,2]
[370389939,1751991062786,-460.0,0.00024657,2]
[370389940,1751991062795,-460.0,0.00024657,2]
[370389941,1751991062805,-460.0,0.00024657,2]
[370389942,1751991062814,-460.0,0.00024657,2]
[370389943,1751991062823,-575.94,0.00024657,2]
[370389944,1751991062833,-998.3,0.00024657,2]
[370389945,1751991062842,-460.0,0.00024657,2]
[370389946,1751991062853,-1392.97,0.00024657,2]
[370389947,1751991062862,-568.92074735,0.00024657,2]
[370389948,1751991062872,-460.0,0.00024657,2]
[370389949,1751991062881,-460.0,0.00024657,2]
[370389950,1751991062891,-818.53,0.00024657,2]
[370389951,1751991062900,-460.0,0.00024657,2]
[370389952,1751991062909,-460.0,0.00024657,2]
[370389953,1751991062924,-602.42,0.00024657,2]
[370389954,1751991062933,-687.157417,0.00024657,7]
[370389955,1751991062943,-460.0,0.00024657,2]
[370389956,1751991062952,-687.157417,0.00024657,7]
[370389957,1751991062961,-460.0,0.00024657,2]
[370389958,1751991062971,-460.0,0.00024657,2]
[370389959,1751991062980,-460.0,0.00024657,2]
[370389960,1751991062989,-687.157417,0.00024657,7]
[370389961,1751991062998,-460.0,0.00024657,2]
[370389962,1751991063007,-460.0,0.00024657,2]
[370389963,1751991063017,-460.0,0.00024657,2]
[370389964,1751991063026,-687.157417,0.00024657,7]
[370389965,1751991063036,-687.157417,0.00024657,7]
[370389966,1751991063045,-460.0,0.00024657,2]
[370389967,1751991063054,-687.157417,0.00024657,7]
[370389968,1751991063063,-460.0,0.00024657,2]
[370389969,1751991063074,-1287.09,0.00024657,2]
[370389970,1751991063083,-687.157417,0.00024657,7]
[370389971,1751991063093,-460.0,0.00024657,2]
[370389972,1751991063102,-687.157417,0.00024657,7]
[370389973,1751991063112,-687.157417,0.00024657,7]
[370389974,1751991063121,-687.157417,0.00024657,7]
[370389975,1751991063131,-619.21,0.00024657,2]
[370389976,1751991063141,-687.157417,0.00024657,7]
[370389977,1751991063150,-687.157417,0.00024657,7]
[370389978,1751991063159,-687.157417,0.00024657,7]
[370389979,1751991063169,-687.157417,0.00024657,7]
[370389980,1751991063178,-687.157417,0.00024657,7]
[370389981,1751991063188,-687.157417,0.00024657,7]
[370389982,1751991063198,-500.0,0.00024657,2]
[370389983,1751991063207,-460.0,0.00024657,2]
[370389984,1751991063217,-420.0,0.00024657,2]
[370389985,1751991063226,-511.66,0.00024657,2]
[370389986,1751991063235,-1216.12,0.00024657,2]
[370389987,1751991063244,-612.36,0.00024657,2]
[370389988,1751991063254,-151.0,0.00024657,7]
[370389989,1751991063264,-460.0,0.00024657,2]
[370389990,1751991063273,-151.0,0.00024657,7]
[370389991,1751991063283,-460.0,0.00024657,2]
[370389992,1751991063293,-151.0,0.00024657,7]
[370389993,1751991063302,-460.0,0.00024657,2]
[370389994,1751991063312,-151.0,0.00024657,7]
[370389995,1751991063321,-460.0,0.00024657,2]
[370389996,1751991063331,-151.0,0.00024657,7]
[370389997,1751991063340,-499.94,0.00024657,2]
[370389998,1751991063350,-151.0,0.00024657,7]
[370389999,1751991063360,-460.0,0.00024657,2]
[370390000,1751991063370,-460.0,0.00024657,2]
[370390001,1751991063380,-729.13,0.00024657,2]
[370390002,1751991063389,-460.0,0.00024657,2]
[370390003,1751991063399,-460.0,0.00024657,2]
[370390004,1751991063408,-460.0,0.00024657,2]
[370390005,1751991063418,-460.0,0.00024657,2]
[370390006,1751991063428,-1376.43,0.00024657,2]
[370390007,1751991063437,-460.0,0.00024657,2]
[370390008,1751991063447,-460.0,0.00024657,2]
[370390009,1751991063456,-460.0,0.00024657,2]
[370390010,1751991063466,-460.0,0.00024657,2]
[370390011,1751991063482,-495.6,0.00024657,2]
[370390012,1751991063492,-460.0,0.00024657,2]
[370390013,1751991063502,-460.0,0.00024657,2]
[370390014,1751991063514,-460.0,0.00024657,2]
[370390015,1751991063524,-460.0,0.00024657,2]
[370390016,1751991063534,-614.03,0.00024657,2]
[370390017,1751991063544,-460.0,0.00024657,2]
[370390018,1751991063554,-492.15,0.00024657,2]
[370390019,1751991063564,-460.0,0.00024657,2]
[370390020,1751991063574,-666.17,0.00024657,2]
[370390021,1751991063584,-460.0,0.00024657,2]
[370390022,1751991063595,-511.03336575,0.00024657,2]
[370390023,1751991063606,-460.0,0.00024657,2]
[370390024,1751991063616,-659.99,0.00024657,2]
[370390025,1751991063626,-565.27,0.00024657,2]
[370390026,1751991063637,-460.0,0.00024657,2]
[370390027,1751991063647,-460.0,0.00024657,2]
[370390028,1751991063656,-767.42,0.00024657,2]
[370390029,1751991063666,-343.56613432,0.00024657,2]
[370390030,1751991063675,-465.49,0.00024657,2]
[370390031,1751991063685,-460.0,0.00024657,2]
[370390032,1751991063694,-460.0,0.00024657,2]
[370390033,1751991063703,-460.0,0.00024657,2]
[370390034,1751991063713,-460.0,0.00024657,2]
[370390035,1751991063722,-460.0,0.00024657,2]
[370390036,1751991063731,-460.0,0.00024657,2]
[370390037,1751991063741,-460.0,0.00024657,2]
[370390038,1751991063751,-460.0,0.00024657,2]
[370390039,1751991063761,-460.0,0.00024657,2]
[370390040,1751991063771,-460.0,0.00024657,2]
[370390041,1751991063781,-1539.69,0.00024657,2]
[370390042,1751991063790,-652.87,0.00024657,2]
[370390043,1751991063800,-460.0,0.00024657,2]
[370390044,1751991063810,-460.0,0.00024657,2]
[370390045,1751991063819,-460.0,0.00024657,2]
[370390046,1751991063829,-460.0,0.00024657,2]
[370390047,1751991063838,-583.14,0.00024657,2]
[370390048,1751991063855,-1823.86,0.00024657,2]
[370390049,1751991063865,-460.0,0.00024657,2]
[370390050,1751991063874,-460.0,0.00024657,2]
[370390051,1751991063884,-460.0,0.00024657,2]
[370390052,1751991063894,-1358.22,0.00024657,2]
[370390053,1751991063903,-460.0,0.00024657,2]
[370390054,1751991063913,-403.98465314,0.00024657,2]
[370390055,1751991063922,-523.93,0.00024657,2]
[370390056,1751991063932,-460.0,0.00024657,2]
[370390057,1751991063941,-460.0,0.00024657,2]
[370390058,1751991063951,-460.0,0.00024657,2]
[370390059,1751991063960,-460.0,0.00024657,2]
[370390060,1751991063969,-460.0,0.00024657,2]
[370390061,1751991063979,-460.0,0.00024657,2]
[370390062,1751991063989,-694.52,0.00024657,2]
[370390063,1751991063998,-1225.23,0.00024657,2]
[370390064,1751991064007,-460.0,0.00024657,2]
[370390065,1751991064017,-460.0,0.00024657,2]
[370390066,1751991064026,-602.12,0.00024657,2]
[370390067,1751991064035,-500.0,0.00024657,2]
[370390068,1751991064044,-264.457186,0.00024657,2]
[370390069,1751991064057,-1601.85,0.00024657,2]
[370390070,1751991064067,-460.0,0.00024657,2]
[370390071,1751991064076,-157.870458,0.00024657,2]
[370390072,1751991064085,-559.95,0.00024657,2]
[370390073,1751991064095,-1272.47,0.00024657,2]
[370390074,1751991064106,-595.48,0.00024657,2]
[370390075,1751991064115,-728.99,0.00024657,2]
[370390076,1751991064124,-460.0,0.00024657,2]
[370390077,1751991064134,-460.0,0.00024657,2]
[370390078,1751991064143,-467.88,0.00024657,2]
[370390079,1751991064153,-460.0,0.00024657,2]
[370390080,1751991064162,-460.0,0.00024657,2]
[370390081,1751991064172,-442.88846204,0.00024657,2]
[370390082,1751991064181,-460.0,0.00024657,2]
[370390083,1751991064190,-906.8,0.00024657,2]
[370390084,1751991064200,-460.0,0.00024657,2]
[370390085,1751991064209,-460.0,0.00024657,2]
[370390086,1751991064219,-649.56,0.00024657,2]
[370390087,1751991064229,-460.0,0.00024657,2]
[370390088,1751991064238,-152.508011,0.00024657,2]
[370390089,1751991064247,-460.0,0.00024657,2]
[370390090,1751991064256,-184.288657,0.00024657,2]
[370390091,1751991064265,-460.0,0.00024657,2]
[370390092,1751991064276,-460.0,0.00024657,2]
[370390093,1751991064285,-460.0,0.00024657,2]
[370390094,1751991064295,-460.0,0.00024657,2]
[370390095,1751991064305,-460.0,0.00024657,2]
[370390096,1751991064315,-1331.2,0.00024657,2]
[370390097,1751991064324,-490.0,0.00024657,2]
[370390098,1751991064334,-460.0,0.00024657,2]
[370390099,1751991064344,-460.0,0.00024657,2]
[370390100,1751991064355,-913.52,0.00024657,2]
[370390101,1751991064365,-537.07,0.00024657,2]
[370390102,1751991064375,-460.0,0.00024657,2]
[370390103,1751991064384,-460.0,0.00024657,2]
[370390104,1751991064394,-1134.03,0.00024657,2]
[370390105,1751991064404,-581.82787284,0.00024657,2]
[370390106,1751991064504,-424.67212716,0.00024657,2]
[370390107,1751991064515,-460.0,0.00024657,2]
[370390108,1751991064525,-460.0,0.00024657,2]
[370390109,1751991064535,-494.92502122,0.00024657,2]
[370390110,1751991064544,-460.0,0.00024657,2]
[370390111,1751991064554,-460.0,0.00024657,2]
[370390112,1751991064563,-367.74024009,0.00024657,2]
[370390113,1751991064576,-434.88975991,0.00024657,2]
[370390114,1751991064586,-460.0,0.00024657,2]
[370390115,1751991064596,-460.0,0.00024657,2]
[370390116,1751991064607,-460.0,0.00024657,2]
[370390117,1751991064616,-460.0,0.00024657,2]
[370390118,1751991064626,-637.67,0.00024657,2]
[370390119,1751991064636,-460.0,0.00024657,2]
[370390120,1751991064646,-460.0,0.00024657,2]
[370390121,1751991064655,-1434.04,0.00024657,2]
[370390122,1751991064665,-460.0,0.00024657,2]
[370390123,1751991064674,-460.0,0.00024657,2]
[370390124,1751991064683,-460.0,0.00024657,2]
[370390125,1751991064692,-460.0,0.00024657,2]
[370390126,1751991064702,-679.63,0.00024657,2]
[370390127,1751991064712,-818.71,0.00024657,2]
[370390128,1751991064721,-460.0,0.00024657,2]
[370390129,1751991064731,-460.0,0.00024657,2]
[370390130,1751991064740,-628.79,0.00024657,2]
[370390131,1751991064750,-460.0,0.00024657,2]
[370390132,1751991064760,-460.0,0.00024657,2]
[370390133,1751991064769,-460.0,0.00024657,2]
[370390134,1751991064779,-460.0,0.00024657,2]
[370390135,1751991064788,-460.96602248,0.00024657,2]
[370390136,1751991064797,-460.0,0.00024657,2]
[370390137,1751991064806,-460.0,0.00024657,2]
[370390138,1751991064815,-734.05,0.00024657,2]
[370390139,1751991064825,-460.0,0.00024657,2]
[370390140,1751991064834,-460.0,0.00024657,2]
[370390141,1751991064844,-460.0,0.00024657,2]
[370390142,1751991064853,-460.0,0.00024657,2]
[370390143,1751991064863,-552.97,0.00024657,2]
[370390144,1751991064872,-460.0,0.00024657,2]
[370390145,1751991064881,-460.0,0.00024657,2]
[370390146,1751991064890,-460.0,0.00024657,2]
[370390147,1751991064900,-1547.27,0.00024657,2]
[370390148,1751991064909,-609.62,0.00024657,2]
[370390149,1751991064919,-460.0,0.00024657,2]
[370390150,1751991064928,-460.0,0.00024657,2]
[370390151,1751991064937,-460.0,0.00024657,2]
[370390152,1751991064948,-498.42,0.00024657,2]
[370390153,1751991064960,-460.0,0.00024657,2]
[370390154,1751991064970,-460.0,0.00024657,2]
[370390155,1751991064980,-460.0,0.00024657,2]
[370390156,1751991064989,-1433.1,0.00024657,2]
[370390157,1751991064998,-460.0,0.00024657,2]
[370390158,1751991065007,-460.0,0.00024657,2]
[370390159,1751991065016,-460.0,0.00024657,2]
[370390160,1751991065025,-460.0,0.00024657,2]
[370390161,1751991065035,-788.63,0.00024657,2]
[370390162,1751991065044,-519.48555374,0.00024657,2]
[370390163,1751991065254,-920.28,0.00024657,2]
[370390164,1751991065263,-460.0,0.00024657,2]
[370390165,1751991065273,-770.53,0.00024657,2]
[370390166,1751991065282,-460.0,0.00024657,2]
[370390167,1751991065292,-460.0,0.00024657,2]
[370390168,1751991065302,-460.0,0.00024657,2]
[370390169,1751991065312,-537.93774761,0.00024657,2]
[370390170,1751991065323,-1508.49,0.00024657,2]
[370390171,1751991065335,-480.03,0.00024657,2]
[370390172,1751991065345,-460.0,0.00024657,2]
[370390173,1751991065355,-1120.54,0.00024657,2]
[370390174,1751991065365,-460.0,0.00024657,2]
[370390175,1751991065374,-460.0,0.00024657,2]
[370390176,1751991065385,-319.31379076,0.00024657,2]
[370390177,1751991065401,-140.68620924,0.00024657,2]
[370390178,1751991065411,-460.0,0.00024657,2]
[370390179,1751991065420,-151.0,0.00024657,7]
[370390180,1751991065429,-289.088842,0.00024657,7]
[370390181,1751991065439,-650.56,0.00024657,2]
[370390182,1751991065448,-460.0,0.00024657,2]
[370390183,1751991065458,-460.0,0.00024657,2]
[370390184,1751991065470,-460.0,0.00024657,2]
[370390185,1751991065481,-436.90482118,0.00024657,2]
[370390186,1751991065490,-174.55355445,0.00024657,2]
[370390187,1751991065499,-158.652422,0.00024657,7]
[370390188,1751991065510,-644.45,0.00024657,2]
[370390189,1751991065520,-460.0,0.00024657,2]
[370390190,1751991065529,-156.876786,0.00024657,2]
[370390191,1751991065539,-906.27,0.00024657,2]
[370390192,1751991065552,-460.0,0.00024657,2]
[370390193,1751991065562,-460.0,0.00024657,2]
[370390194,1751991065571,-460.0,0.00024657,2]
[370390195,1751991065582,-159.567386,0.00024657,2]
[370390196,1751991065592,-460.0,0.00024657,2]
[370390197,1751991065601,-460.0,0.00024657,2]
[370390198,1751991065612,-474.6,0.00024657,2]
[370390199,1751991065621,-460.0,0.00024657,2]
[370390200,1751991065630,-1388.16,0.00024657,2]
[370390201,1751991065639,-460.0,0.00024657,2]
[370390202,1751991065649,-460.0,0.00024657,2]
[370390203,1751991065661,-460.0,0.00024657,2]
[370390204,1751991065671,-460.0,0.00024657,2]
[370390205,1751991065681,-666.33,0.00024657,2]
[370390206,1751991065691,-637.91,0.00024657,2]
[370390207,1751991065701,-460.0,0.00024657,2]
[370390208,1751991065710,-460.0,0.00024657,2]
[370390209,1751991065720,-511.89,0.00024657,2]
[370390210,1751991065729,-815.25761913,0.00024657,2]
[370390211,1751991065744,-244.39238087,0.00024657,2]
[370390212,1751991065753,-551.18,0.00024657,2]
[370390213,1751991065763,-460.0,0.00024657,2]
[370390214,1751991065772,-1232.86,0.00024657,2]
[370390215,1751991065782,-192.93749364,0.00024657,2]
[370390217,1751991126971,158.18,0.00013699,2]
[370390220,1751991470466,460.0,0.0003013,120]
[370390222,1751991844413,-168.3,0.00027397,80]
[370390223,1751991844984,-208.0,0.000279,30]
[370390224,1751991845104,-207.0,0.0002843,30]
[370390225,1751991845128,-208.0,0.0002845,30]
[370390226,1751991845227,-207.0,0.0002899,30]
[370390227,1751991845250,-208.0,0.00029,30]
[370390228,1751991845347,-208.0,0.0002956,30]
[370390229,1751991845369,-207.0,0.0002956,30]
[370390230,1751991845460,-208.0,0.0003011,30]
[370390231,1751991845483,-207.0,0.0003012,30]
[370390232,1751991845516,-650.0,0.00030136,45]
[370390233,1751991845538,-650.0,0.00030136,45]
[370390234,1751991845560,-650.0,0.00030136,45]
[370390235,1751991845583,-650.0,0.00030136,45]
[370390236,1751991845606,-650.0,0.00030136,45]
[370390237,1751991845628,-650.0,0.00030136,45]
[370390238,1751991845649,-650.0,0.00030136,45]
[370390239,1751991845671,-650.0,0.00030136,45]
[370390240,1751991845694,-650.0,0.00030136,45]
[370390241,1751991845719,-650.0,0.00030136,45]
[370390242,1751991845741,-650.0,0.00030136,45]
[370390243,1751991845764,-650.0,0.00030136,45]
[370390244,1751991845786,-650.0,0.00030136,45]
[370390245,1751991845808,-650.0,0.00030136,45]
[370390246,1751991845829,-650.0,0.00030136,45]
[370390247,1751991845852,-650.0,0.00030136,45]
[370390248,1751991845877,-650.0,0.00030136,45]
[370390249,1751991845900,-650.0,0.00030136,45]
[370390250,1751991845923,-650.0,0.00030136,45]
[370390251,1751991845945,-650.0,0.00030136,45]
[370390252,1751991845969,-436.64036253,0.00030136,45]
[370390253,1751991846012,-401.20286549,0.00030137,120]
[370390254,1751991846034,-165.46190666,0.00030137,120]
[370390255,1751991846057,-312.5717884,0.00030137,120]
[370390256,1751991846080,-1922.4,0.00030164,30]
[370390257,1751991846137,-208.0,0.0003067,30]
[370390258,1751991846160,-207.0,0.0003068,30]
[370390259,1751991846182,-211.0,0.0003068,30]
[370390260,1751991846232,-2000.0,0.00030685,120]
[370390261,1751991846257,-2228.3028795,0.0003088,120]
[370390262,1751991846306,-898.30225983,0.00031,120]
[370390263,1751991846328,-20000.0,0.000311,120]
[370390264,1751991846350,-208.0,0.0003122,30]
[370390265,1751991846372,-2000.0,0.00031233,120]
[370390266,1751991846627,-208.0,0.0003177,30]
[370390267,1751991846661,-2000.0,0.00031781,120]
[370390268,1751991846686,-10000.0,0.0003188,120]
[370390269,1751991846712,-212.61643981,0.00032,120]
[370390270,1751991846737,-208.0,0.0003232,30]
[370390271,1751991846760,-2000.0,0.00032329,120]
[370390272,1751991846786,-4000.0,0.00032877,30]
[370390273,1751991846809,-2000.0,0.00032877,120]
[370390274,1751991846833,-10000.0,0.0003288,120]
[370390275,1751991846856,-16823.0,0.00033,30]
[370390276,1751991846880,-2000.0,0.00033425,120]
[370390277,1751991846905,-10000.0,0.0003388,120]
[370390278,1751991846929,-2000.0,0.00033973,120]
[370390279,1751991846951,-1000.0,0.00033973,120]
[370390280,1751991846974,-400.0,0.00034,120]
[370390281,1751991847001,-1620.47071176,0.00034107,30]
[370390282,1751991847024,-1000.0,0.00034247,120]
[370390283,1751991847047,-2000.0,0.00034521,120]
[370390284,1751991847070,-1000.0,0.00034521,120]
[370390285,1751991847095,-163.25,0.00034522,120]
[370390286,1751991847121,-1620.47071176,0.00034555,31]
[370390287,1751991847144,-1000.0,0.00034795,120]
[370390288,1751991847167,-10000.0,0.0003488,120]
[370390289,1751991847189,-6124.35232433,0.000349,120]
[370390290,1751991847213,-1000.0,0.00035,120]
[370390291,1751991847235,-97838.8862485,0.00035,90]
[370390292,1751991847258,-500.0,0.00035,120]
[370390293,1751991847284,-1620.47071176,0.00035003,32]
[370390294,1751991847307,-2000.0,0.00035068,120]